fUST/lending_fUST_20250219
["ID","MTS","AMOUNT","RATE_DAILY","PERIOD"]
[353621907,1739963437699,-500.0,0.00014027,2]
[353621909,1739963437708,-500.0,0.00014027,2]
[353621911,1739963437718,-500.0,0.00014027,2]
[353621913,1739963437727,-500.0,0.00014027,2]
[353621915,1739963437736,-500.0,0.00014027,2]
[353621917,1739963437745,-500.0,0.00014027,2]
[353621919,1739963437754,-500.0,0.00014027,2]
[353621921,1739963437765,-500.0,0.00014027,2]
[353621923,1739963437774,-500.0,0.00014027,2]
[353621939,1739963437880,-500.0,0.00014027,2]
[353621943,1739963437890,-500.0,0.00014027,2]
[353621945,1739963437899,-500.0,0.00014027,2]
[353621947,1739963437909,-500.0,0.00014027,2]
[353621949,1739963437918,-500.0,0.00014027,2]
[353621951,1739963437928,-564.73,0.00014027,2]
[353621953,1739963437937,-500.0,0.00014027,2]
[353621955,1739963437946,-500.0,0.00014027,2]
[353621957,1739963437958,-500.0,0.00014027,2]
[353621959,1739963437972,-500.0,0.00014027,2]
[353621961,1739963437982,-1414.39,0.00014027,2]
[353621963,1739963437991,-500.0,0.00014027,2]
[353621965,1739963438000,-923.23,0.00014027,2]
[353621967,1739963438011,-543.48104148,0.00014027,2]
[353621969,1739963438019,-538.99,0.00014027,2]
[353621971,1739963438030,-892.72,0.00014027,2]
[353621973,1739963438040,-500.0,0.00014027,2]
[353621975,1739963438050,-507.33,0.00014027,2]
[353621977,1739963438059,-500.0,0.00014027,2]
[353621979,1739963438068,-1847.29,0.00014027,2]
[353621981,1739963438078,-1239.35,0.00014027,2]
[353621983,1739963438087,-500.0,0.00014027,2]
[353621985,1739963438097,-500.0,0.00014027,2]
[353621987,1739963438106,-2366.29,0.00014027,2]
[353621989,1739963438115,-500.0,0.00014027,2]
[353621991,1739963438125,-500.0,0.00014027,2]
[353621993,1739963438135,-500.0,0.00014027,2]
[353621995,1739963438144,-500.0,0.00014027,2]
[353621997,1739963438153,-500.0,0.00014027,2]
[353621999,1739963438162,-500.0,0.00014027,2]
[353622001,1739963438171,-500.0,0.00014027,2]
[353622003,1739963438180,-500.0,0.00014027,2]
[353622005,1739963438189,-500.0,0.00014027,2]
[353622007,1739963438199,-500.0,0.00014027,2]
[353622009,1739963438208,-500.0,0.00014027,2]
[353622011,1739963438217,-500.0,0.00014027,2]
[353622013,1739963438226,-500.0,0.00014027,2]
[353622014,1739963438235,-500.0,0.00014027,2]
[353622015,1739963438244,-500.0,0.00014027,2]
[353622016,1739963438255,-500.0,0.00014027,2]
[353622017,1739963438265,-8546.1,0.00014027,2]
[353622018,1739963438274,-375.18983156,0.00014027,2]
[353622019,1739963438392,-124.81016844,0.00014027,2]
[353622020,1739963438402,-1035.21,0.00014027,2]
[353622021,1739963438411,-500.0,0.00014027,2]
[353622022,1739963438421,-1437.48180486,0.00014045,2]
[353622023,1739963438430,-500.0,0.0001407,2]
[353622024,1739963438439,-500.0,0.00014109,2]
[353622025,1739963438448,-500.0,0.00014109,2]
[353622026,1739963438457,-500.0,0.00014109,2]
[353622027,1739963438466,-500.0,0.00014109,2]
[353622028,1739963438476,-500.0,0.00014109,2]
[353622029,1739963438485,-500.0,0.00014109,2]
[353622030,1739963438494,-500.0,0.00014109,2]
[353622031,1739963438503,-500.0,0.00014109,2]
[353622032,1739963438514,-500.0,0.00014109,2]
[353622033,1739963438523,-500.0,0.00014109,2]
[353622034,1739963438533,-511.2,0.00014109,2]
[353622035,1739963438543,-500.0,0.00014109,2]
[353622036,1739963438554,-500.0,0.00014109,2]
[353622037,1739963438563,-500.0,0.00014109,2]
[353622038,1739963438573,-500.0,0.00014109,2]
[353622039,1739963438582,-500.0,0.00014109,2]
[353622040,1739963438592,-500.0,0.00014109,2]
[353622041,1739963438603,-500.0,0.00014109,2]
[353622042,1739963438613,-500.0,0.00014109,2]
[353622043,1739963438623,-500.0,0.00014109,2]
[353622044,1739963438633,-500.0,0.00014109,2]
[353622045,1739963438643,-500.0,0.00014109,2]
[353622046,1739963438652,-500.0,0.00014109,2]
[353622047,1739963438662,-500.0,0.00014109,2]
[353622048,1739963438672,-529.23,0.00014109,2]
[353622049,1739963438681,-500.0,0.00014109,2]
[353622050,1739963438690,-500.0,0.00014109,2]
[353622051,1739963438699,-670.4,0.00014109,2]
[353622052,1739963438708,-500.0,0.00014109,2]
[353622053,1739963438718,-297.43375054,0.00014109,2]
[353622054,1739963438727,-500.0,0.00014109,2]
[353622055,1739963438736,-500.0,0.00014109,2]
[353622056,1739963438745,-500.0,0.00014109,2]
[353622057,1739963438754,-3522.08,0.00014109,2]
[353622058,1739963438764,-500.0,0.00014109,2]
[353622059,1739963438774,-500.0,0.00014109,2]
[353622060,1739963438783,-500.0,0.00014109,2]
[353622061,1739963438792,-500.0,0.00014109,2]
[353622062,1739963438802,-500.0,0.00014109,2]
[353622063,1739963438812,-500.0,0.00014109,2]
[353622064,1739963438822,-500.0,0.00014109,2]
[353622065,1739963438831,-500.0,0.00014109,2]
[353622066,1739963438841,-500.0,0.00014109,2]
[353622067,1739963438851,-500.0,0.00014109,2]
[353622068,1739963438861,-500.0,0.00014109,2]
[353622069,1739963438871,-500.0,0.00014109,2]
[353622070,1739963438881,-500.0,0.00014109,2]
[353622071,1739963438891,-500.0,0.00014109,2]
[353622072,1739963438901,-500.0,0.00014109,2]
[353622073,1739963438910,-500.0,0.00014109,2]
[353622074,1739963438920,-500.0,0.00014109,2]
[353622075,1739963438929,-280.56054517,0.00014109,2]
[353622076,1739963438939,-500.0,0.00014109,2]
[353622077,1739963438948,-564.73,0.00014109,2]
[353622078,1739963438959,-467.63351307,0.00014109,2]
[353622079,1739963438970,-500.0,0.00014109,2]
[353622080,1739963438979,-500.0,0.00014109,2]
[353622081,1739963438988,-500.0,0.00014109,2]
[353622082,1739963438998,-1414.39,0.00014109,2]
[353622083,1739963439010,-500.0,0.00014109,2]
[353622084,1739963439020,-923.23,0.00014109,2]
[353622085,1739963439030,-538.99,0.00014109,2]
[353622086,1739963439042,-892.72,0.00014109,2]
[353622087,1739963439052,-501.99831608,0.00014109,2]
[353622088,1739963439062,-507.33,0.00014109,2]
[353622089,1739963439070,-500.0,0.00014109,2]
[353622090,1739963439079,-1847.29,0.00014109,2]
[353622091,1739963439089,-1239.35,0.00014109,2]
[353622092,1739963439099,-500.0,0.00014109,2]
[353622093,1739963439108,-500.0,0.00014109,2]
[353622094,1739963439117,-2366.29,0.00014109,2]
[353622095,1739963439127,-500.0,0.00014109,2]
[353622096,1739963439137,-500.0,0.00014109,2]
[353622097,1739963439146,-544.72936057,0.00014109,2]
[353622098,1739963439156,-500.0,0.00014109,2]
[353622099,1739963439166,-500.0,0.00014109,2]
[353622100,1739963439176,-500.0,0.00014109,2]
[353622101,1739963439185,-223.14271853,0.00014109,2]
[353622102,1739963439195,-500.0,0.00014109,2]
[353622103,1739963439205,-500.0,0.00014109,2]
[353622104,1739963439214,-500.0,0.00014109,2]
[353622105,1739963439224,-500.0,0.00014109,2]
[353622106,1739963439233,-500.0,0.00014109,2]
[353622107,1739963439243,-500.0,0.00014109,2]
[353622108,1739963439252,-500.0,0.00014109,2]
[353622109,1739963439262,-500.0,0.00014109,2]
[353622110,1739963439271,-500.0,0.00014109,2]
[353622111,1739963439281,-8546.1,0.00014109,2]
[353622112,1739963439291,-500.0,0.00014109,2]
[353622113,1739963439302,-1035.21,0.00014109,2]
[353622114,1739963439311,-547.20811981,0.00014109,2]
[353622115,1739963439319,-179.65864857,0.00014112,2]
[353622116,1739963439329,-500.0,0.00014164,2]
[353622117,1739963439339,-500.0,0.00014191,2]
[353622118,1739963439349,-600.72,0.00014191,2]
[353622119,1739963439358,-500.0,0.00014191,2]
[353622120,1739963439368,-500.0,0.00014191,2]
[353622121,1739963439378,-500.0,0.00014191,2]
[353622122,1739963439389,-594.46,0.00014191,2]
[353622124,1739963439399,-554.70640465,0.00014191,2]
[353622125,1739963439409,-500.0,0.00014191,2]
[353622126,1739963439419,-500.0,0.00014191,2]
[353622127,1739963439430,-482.38312914,0.00014191,2]
[353622128,1739963439440,-292.93100919,0.00014191,2]
[353622129,1739963439451,-500.0,0.00014191,2]
[353622130,1739963439461,-500.0,0.00014191,2]
[353622131,1739963439471,-500.0,0.00014191,2]
[353622132,1739963439481,-500.0,0.00014191,2]
[353622133,1739963439490,-500.0,0.00014191,2]
[353622134,1739963439500,-500.0,0.00014191,2]
[353622135,1739963439509,-500.0,0.00014191,2]
[353622136,1739963439519,-500.0,0.00014191,2]
[353622137,1739963439529,-529.23,0.00014191,2]
[353622138,1739963439538,-500.0,0.00014191,2]
[353622139,1739963439547,-670.4,0.00014191,2]
[353622140,1739963439557,-500.0,0.00014191,2]
[353622141,1739963439566,-500.0,0.00014191,2]
[353622142,1739963439576,-500.0,0.00014191,2]
[353622143,1739963439586,-3522.08,0.00014191,2]
[353622144,1739963439596,-500.0,0.00014191,2]
[353622145,1739963439605,-500.0,0.00014191,2]
[353622146,1739963439615,-500.0,0.00014191,2]
[353622147,1739963439624,-500.0,0.00014191,2]
[353622148,1739963439633,-500.0,0.00014191,2]
[353622149,1739963439643,-500.0,0.00014191,2]
[353622150,1739963439652,-500.0,0.00014191,2]
[353622151,1739963439662,-388.63713287,0.00014191,2]
[353622152,1739963439671,-500.0,0.00014191,2]
[353622153,1739963439680,-500.0,0.00014191,2]
[353622154,1739963439690,-500.0,0.00014191,2]
[353622155,1739963439699,-500.0,0.00014191,2]
[353622157,1739963439709,-500.0,0.00014191,2]
[353622158,1739963439719,-564.73,0.00014191,2]
[353622159,1739963439728,-500.0,0.00014191,2]
[353622160,1739963439738,-500.0,0.00014191,2]
[353622161,1739963439748,-1414.39,0.00014191,2]
[353622162,1739963439757,-923.23,0.00014191,2]
[353622164,1739963439768,-538.99,0.00014191,2]
[353622166,1739963439777,-892.72,0.00014191,2]
[353622167,1739963439787,-507.33,0.00014191,2]
[353622168,1739963439796,-500.0,0.00014191,2]
[353622169,1739963439805,-1847.29,0.00014191,2]
[353622170,1739963439927,-1239.35,0.00014191,2]
[353622171,1739963439938,-500.0,0.00014191,2]
[353622172,1739963439947,-2366.29,0.00014191,2]
[353622173,1739963439958,-500.0,0.00014191,2]
[353622174,1739963439971,-500.0,0.00014191,2]
[353622176,1739963439980,-500.0,0.00014191,2]
[353622178,1739963439990,-500.0,0.00014191,2]
[353622180,1739963439998,-500.0,0.00014191,2]
[353622182,1739963440009,-500.0,0.00014191,2]
[353622183,1739963440019,-500.0,0.00014191,2]
[353622185,1739963440029,-500.0,0.00014191,2]
[353622186,1739963440039,-8546.1,0.00014191,2]
[353622188,1739963440049,-1035.21,0.00014191,2]
[353622189,1739963440059,-541.09834073,0.00014273,2]
[353622191,1739963440068,-500.0,0.00014273,2]
[353622193,1739963440077,-500.0,0.00014273,2]
[353622195,1739963440087,-500.0,0.00014273,2]
[353622196,1739963440097,-500.0,0.00014273,2]
[353622197,1739963440106,-500.0,0.00014273,2]
[353622198,1739963440115,-500.0,0.00014273,2]
[353622199,1739963440124,-604.66,0.00014273,2]
[353622200,1739963440134,-500.0,0.00014273,2]
[353622201,1739963440143,-529.23,0.00014273,2]
[353622202,1739963440152,-500.0,0.00014273,2]
[353622203,1739963440162,-670.4,0.00014273,2]
[353622204,1739963440171,-3522.08,0.00014273,2]
[353622205,1739963440180,-500.0,0.00014273,2]
[353622206,1739963440189,-500.0,0.00014273,2]
[353622207,1739963440199,-466.3,0.00014273,2]
[353622208,1739963440208,-500.0,0.00014273,2]
[353622209,1739963440217,-500.0,0.00014273,2]
[353622210,1739963440227,-500.0,0.00014273,2]
[353622211,1739963440237,-500.0,0.00014273,2]
[353622212,1739963440247,-500.0,0.00014273,2]
[353622213,1739963440256,-500.0,0.00014273,2]
[353622214,1739963440267,-500.0,0.00014273,2]
[353622215,1739963440277,-564.73,0.00014273,2]
[353622216,1739963440287,-500.0,0.00014273,2]
[353622217,1739963440296,-500.0,0.00014273,2]
[353622218,1739963440305,-1414.39,0.00014273,2]
[353622219,1739963440315,-923.23,0.00014273,2]
[353622220,1739963440325,-538.99,0.00014273,2]
[353622221,1739963440335,-892.72,0.00014273,2]
[353622222,1739963440344,-507.33,0.00014273,2]
[353622223,1739963440354,-500.0,0.00014273,2]
[353622224,1739963440363,-1847.29,0.00014273,2]
[353622225,1739963440373,-1239.35,0.00014273,2]
[353622226,1739963440382,-500.0,0.00014273,2]
[353622227,1739963440392,-2366.29,0.00014273,2]
[353622228,1739963440402,-500.0,0.00014273,2]
[353622229,1739963440411,-500.0,0.00014273,2]
[353622230,1739963440420,-500.0,0.00014273,2]
[353622231,1739963440430,-500.0,0.00014273,2]
[353622232,1739963440440,-500.0,0.00014273,2]
[353622233,1739963440450,-500.0,0.00014273,2]
[353622234,1739963440459,-500.0,0.00014273,2]
[353622235,1739963440469,-295.88671157,0.00014273,2]
[353622236,1739963440478,-8546.1,0.00014273,2]
[353622237,1739963440488,-1035.21,0.00014273,2]
[353622238,1739963440497,-426.3214467,0.00014319,2]
[353622239,1739963440507,-285.34522516,0.00014356,2]
[353622240,1739963440517,-500.0,0.00014356,2]
[353622241,1739963440527,-500.0,0.00014356,2]
[353622242,1739963440537,-500.0,0.00014356,2]
[353622243,1739963440546,-500.0,0.00014356,2]
[353622244,1739963440555,-500.0,0.00014356,2]
[353622245,1739963440564,-529.23,0.00014356,2]
[353622246,1739963440573,-500.0,0.00014356,2]
[353622247,1739963440583,-670.4,0.00014356,2]
[353622248,1739963440591,-3522.08,0.00014356,2]
[353622249,1739963440601,-500.0,0.00014356,2]
[353622250,1739963440610,-500.0,0.00014356,2]
[353622251,1739963440620,-500.0,0.00014356,2]
[353622252,1739963440629,-500.0,0.00014356,2]
[353622253,1739963440638,-500.0,0.00014356,2]
[353622254,1739963440647,-500.0,0.00014356,2]
[353622255,1739963440656,-500.0,0.00014356,2]
[353622256,1739963440666,-500.0,0.00014356,2]
[353622257,1739963440676,-564.73,0.00014356,2]
[353622258,1739963440685,-278.86441664,0.00014356,2]
[353622259,1739963440693,-500.0,0.00014356,2]
[353622260,1739963440703,-1414.39,0.00014356,2]
[353622261,1739963440711,-923.23,0.00014356,2]
[353622262,1739963440720,-538.99,0.00014356,2]
[353622263,1739963440728,-892.72,0.00014356,2]
[353622264,1739963440738,-507.33,0.00014356,2]
[353622265,1739963440746,-500.0,0.00014356,2]
[353622266,1739963440755,-1847.29,0.00014356,2]
[353622267,1739963440764,-1239.35,0.00014356,2]
[353622268,1739963440773,-500.0,0.00014356,2]
[353622269,1739963440782,-2366.29,0.00014356,2]
[353622270,1739963440791,-500.0,0.00014356,2]
[353622271,1739963440799,-500.0,0.00014356,2]
[353622272,1739963440808,-500.0,0.00014356,2]
[353622273,1739963440817,-500.0,0.00014356,2]
[353622274,1739963440826,-8546.1,0.00014356,2]
[353622275,1739963440835,-1035.21,0.00014356,2]
[353622276,1739963440844,-500.0,0.00014358,2]
[353622277,1739963440850,-577.86744066,0.00014358,2]
[353622278,1739963440860,-500.0,0.00014438,2]
[353622279,1739963440869,-461.19,0.00014438,2]
[353622280,1739963440877,-500.0,0.00014438,2]
[353622281,1739963440885,-500.0,0.00014438,2]
[353622282,1739963440894,-500.0,0.00014438,2]
[353622283,1739963440906,-529.23,0.00014438,2]
[353622284,1739963440915,-500.0,0.00014438,2]
[353622285,1739963440924,-670.4,0.00014438,2]
[353622286,1739963440933,-3522.08,0.00014438,2]
[353622287,1739963440940,-500.0,0.00014438,2]
[353622288,1739963440948,-500.0,0.00014438,2]
[353622289,1739963440955,-291.29543644,0.00014438,2]
[353622290,1739963440966,-500.0,0.00014438,2]
[353622291,1739963440973,-500.0,0.00014438,2]
[353622292,1739963440979,-500.0,0.00014438,2]
[353622293,1739963440986,-500.0,0.00014438,2]
[353622294,1739963440992,-500.0,0.00014438,2]
[353622295,1739963441000,-564.73,0.00014438,2]
[353622296,1739963441008,-500.0,0.00014438,2]
[353622297,1739963441016,-1414.39,0.00014438,2]
[353622298,1739963441024,-923.23,0.00014438,2]
[353622299,1739963441031,-538.99,0.00014438,2]
[353622300,1739963441040,-892.72,0.00014438,2]
[353622301,1739963441049,-507.33,0.00014438,2]
[353622302,1739963441059,-500.0,0.00014438,2]
[353622303,1739963441067,-1847.29,0.00014438,2]
[353622304,1739963441076,-1239.35,0.00014438,2]
[353622305,1739963441084,-500.0,0.00014438,2]
[353622306,1739963441093,-2366.29,0.00014438,2]
[353622307,1739963441102,-500.0,0.00014438,2]
[353622308,1739963441110,-500.0,0.00014438,2]
[353622309,1739963441119,-374.1,0.00014438,2]
[353622310,1739963441128,-8546.1,0.00014438,2]
[353622311,1739963441137,-1035.21,0.00014438,2]
[353622312,1739963441147,-500.0,0.0001452,2]
[353622313,1739963441156,-500.0,0.0001452,2]
[353622314,1739963441166,-500.0,0.0001452,2]
[353622315,1739963441174,-500.0,0.0001452,2]
[353622316,1739963441183,-529.23,0.0001452,2]
[353622317,1739963441192,-500.0,0.0001452,2]
[353622318,1739963441201,-670.4,0.0001452,2]
[353622319,1739963441210,-3522.08,0.0001452,2]
[353622320,1739963441219,-500.0,0.0001452,2]
[353622321,1739963441228,-500.0,0.0001452,2]
[353622322,1739963441237,-157.51,0.0001452,2]
[353622323,1739963441246,-500.0,0.0001452,2]
[353622324,1739963441255,-500.0,0.0001452,2]
[353622325,1739963441265,-564.73,0.0001452,2]
[353622326,1739963441275,-500.0,0.0001452,2]
[353622327,1739963441284,-1414.39,0.0001452,2]
[353622328,1739963441294,-923.23,0.0001452,2]
[353622329,1739963441304,-538.99,0.0001452,2]
[353622330,1739963441314,-892.72,0.0001452,2]
[353622331,1739963441324,-507.33,0.0001452,2]
[353622332,1739963441335,-1847.29,0.0001452,2]
[353622333,1739963441344,-1239.35,0.0001452,2]
[353622334,1739963441354,-2366.29,0.0001452,2]
[353622335,1739963441365,-500.0,0.0001452,2]
[353622336,1739963441375,-500.0,0.0001452,2]
[353622337,1739963441384,-8546.1,0.0001452,2]
[353622338,1739963441393,-1035.21,0.0001452,2]
[353622339,1739963441403,-540.26763482,0.00014521,2]
[353622340,1739963441412,-823.0,0.00014543,2]
[353622341,1739963441421,-156.139,0.00014576,2]
[353622342,1739963441431,-500.0,0.00014602,2]
[353622343,1739963441440,-500.0,0.00014602,2]
[353622344,1739963441450,-500.0,0.00014602,2]
[353622345,1739963441459,-500.0,0.00014602,2]
[353622346,1739963441469,-529.23,0.00014602,2]
[353622347,1739963441479,-500.0,0.00014602,2]
[353622348,1739963441489,-670.4,0.00014602,2]
[353622349,1739963441497,-500.0,0.00014602,2]
[353622350,1739963441506,-500.0,0.00014602,2]
[353622351,1739963441516,-3522.08,0.00014602,2]
[353622352,1739963441526,-500.0,0.00014602,2]
[353622353,1739963441536,-500.0,0.00014602,2]
[353622354,1739963441546,-564.73,0.00014602,2]
[353622355,1739963441556,-500.0,0.00014602,2]
[353622356,1739963441565,-1414.39,0.00014602,2]
[353622357,1739963441574,-923.23,0.00014602,2]
[353622358,1739963441584,-538.99,0.00014602,2]
[353622359,1739963441593,-892.72,0.00014602,2]
[353622360,1739963441603,-507.33,0.00014602,2]
[353622361,1739963441612,-1847.29,0.00014602,2]
[353622362,1739963441622,-1239.35,0.00014602,2]
[353622363,1739963441631,-151.0,0.00014602,2]
[353622364,1739963441641,-2366.29,0.00014602,2]
[353622365,1739963441652,-500.0,0.00014602,2]
[353622366,1739963441662,-500.0,0.00014602,2]
[353622367,1739963441672,-8546.1,0.00014602,2]
[353622368,1739963441681,-1035.21,0.00014602,2]
[353622369,1739963441691,-503.18425071,0.00014618,2]
[353622370,1739963441701,-500.0,0.00014684,2]
[353622371,1739963441710,-500.0,0.00014684,2]
[353622372,1739963441720,-345.9,0.00014684,2]
[353622373,1739963441730,-529.23,0.00014684,2]
[353622374,1739963441750,-500.0,0.00014684,2]
[353622375,1739963441851,-670.4,0.00014684,2]
[353622376,1739963441861,-500.0,0.00014684,2]
[353622377,1739963441871,-500.0,0.00014684,2]
[353622378,1739963441881,-3522.08,0.00014684,2]
[353622379,1739963441891,-500.0,0.00014684,2]
[353622380,1739963441900,-500.0,0.00014684,2]
[353622381,1739963441910,-564.73,0.00014684,2]
[353622382,1739963441920,-500.0,0.00014684,2]
[353622383,1739963441930,-1414.39,0.00014684,2]
[353622384,1739963441939,-151.0,0.00014684,2]
[353622385,1739963441949,-923.23,0.00014684,2]
[353622386,1739963441961,-538.99,0.00014684,2]
[353622387,1739963441971,-892.72,0.00014684,2]
[353622388,1739963441980,-507.33,0.00014684,2]
[353622389,1739963441989,-1847.29,0.00014684,2]
[353622390,1739963441999,-1239.35,0.00014684,2]
[353622391,1739963442009,-2366.29,0.00014684,2]
[353622392,1739963442019,-500.0,0.00014684,2]
[353622393,1739963442029,-9377.860016,0.00014684,2]
[353622394,1739963442039,-500.0,0.00014684,2]
[353622395,1739963442048,-9377.860016,0.00014684,2]
[353622396,1739963442057,-8546.1,0.00014684,2]
[353622397,1739963442067,-1035.21,0.00014684,2]
[353622398,1739963442077,-151.0,0.000147,2]
[353622399,1739963442086,-500.0,0.00014767,2]
[353622400,1739963442095,-500.0,0.00014767,2]
[353622401,1739963442104,-529.23,0.00014767,2]
[353622402,1739963442111,-500.0,0.00014767,2]
[353622403,1739963442120,-151.0,0.00014767,2]
[353622404,1739963442130,-670.4,0.00014767,2]
[353622405,1739963442140,-259.774038,0.00014767,2]
[353622406,1739963442150,-500.0,0.00014767,2]
[353622407,1739963442159,-151.0,0.00014767,2]
[353622408,1739963442170,-500.0,0.00014767,2]
[353622409,1739963442179,-3522.08,0.00014767,2]
[353622410,1739963442189,-500.0,0.00014767,2]
[353622411,1739963442199,-500.0,0.00014767,2]
[353622412,1739963442208,-564.73,0.00014767,2]
[353622413,1739963442217,-500.0,0.00014767,2]
[353622414,1739963442227,-1414.39,0.00014767,2]
[353622415,1739963442236,-923.23,0.00014767,2]
[353622416,1739963442245,-538.99,0.00014767,2]
[353622417,1739963442254,-892.72,0.00014767,2]
[353622418,1739963442263,-507.33,0.00014767,2]
[353622419,1739963442272,-1847.29,0.00014767,2]
[353622420,1739963442281,-1239.35,0.00014767,2]
[353622421,1739963442290,-1254.528769,0.00014767,2]
[353622423,1739963442299,-2072.021668,0.00014767,2]
[353622425,1739963442309,-1254.528769,0.00014767,2]
[353622426,1739963442318,-2072.021668,0.00014767,2]
[353622427,1739963442327,-2366.29,0.00014767,2]
[353622428,1739963442337,-500.0,0.00014767,2]
[353622429,1739963442347,-500.0,0.00014767,2]
[353622430,1739963442357,-8546.1,0.00014767,2]
[353622431,1739963442366,-1035.21,0.00014767,2]
[353622432,1739963442376,-151.0,0.000148,2]
[353622434,1739963442386,-14683.986448,0.000148,2]
[353622435,1739963442395,-1271.51507834,0.000148,2]
[353622438,1739963442405,-152.35912964,0.000148,2]
[353622440,1739963442415,-152.35912964,0.000148,2]
[353622442,1739963442424,-152.35912964,0.000148,2]
[353622444,1739963442433,-152.35912964,0.000148,2]
[353622446,1739963442442,-152.35912964,0.000148,2]
[353622447,1739963442451,-152.35912964,0.000148,2]
[353622448,1739963442460,-152.35912964,0.000148,2]
[353622450,1739963442469,-152.35912964,0.000148,2]
[353622451,1739963442479,-152.35912964,0.000148,2]
[353622453,1739963442489,-152.35,0.000148,2]
[353622454,1739963442498,-401.32877515,0.000148,2]
[353622456,1739963442508,-401.32877515,0.000148,2]
[353622458,1739963442519,-401.32877515,0.000148,2]
[353622459,1739963442528,-401.32877515,0.000148,2]
[353622461,1739963442538,-401.32877515,0.000148,2]
[353622462,1739963442548,-401.32877515,0.000148,2]
[353622464,1739963442557,-401.32877515,0.000148,2]
[353622465,1739963442567,-401.32877515,0.000148,2]
[353622467,1739963442576,-401.32877515,0.000148,2]
[353622468,1739963442586,-401.32877515,0.000148,2]
[353622470,1739963442595,-401.32877515,0.000148,2]
[353622472,1739963442605,-401.32877515,0.000148,2]
[353622474,1739963442614,-401.32877515,0.000148,2]
[353622475,1739963442623,-401.32877515,0.000148,2]
[353622476,1739963442633,-401.32877515,0.000148,2]
[353622477,1739963442642,-401.32877515,0.000148,2]
[353622478,1739963442651,-401.32877515,0.000148,2]
[353622479,1739963442660,-401.32877515,0.000148,2]
[353622480,1739963442669,-401.32877515,0.000148,2]
[353622481,1739963442678,-401.32,0.000148,2]
[353622482,1739963442687,-161.49090664,0.000148,2]
[353622483,1739963442697,-161.49090664,0.000148,2]
[353622484,1739963442706,-161.49090664,0.000148,2]
[353622485,1739963442715,-161.49090664,0.000148,2]
[353622486,1739963442724,-161.49090664,0.000148,2]
[353622488,1739963442733,-161.49090664,0.000148,2]
[353622490,1739963442742,-161.49090664,0.000148,2]
[353622492,1739963442751,-161.49090664,0.000148,2]
[353622493,1739963442760,-161.49090664,0.000148,2]
[353622495,1739963442770,-161.49090664,0.000148,2]
[353622497,1739963442780,-161.49090664,0.000148,2]
[353622499,1739963442789,-161.49090664,0.000148,2]
[353622500,1739963442799,-1945.96267762,0.0001482,2]
[353622501,1739963442808,-1048.85617486,0.00014839,2]
[353622502,1739963442817,-500.0,0.00014849,2]
[353622503,1739963442826,-500.0,0.00014849,2]
[353622504,1739963442836,-529.23,0.00014849,2]
[353622505,1739963442845,-500.0,0.00014849,2]